fUST/lending_fUST_20240324
["ID","MTS","AMOUNT","RATE_DAILY","PERIOD"]
[320315534,1711285862998,-423.02215439,0.00039651,4]
[320315535,1711285863007,-3098.52,0.00039651,4]
[320315536,1711285863016,-627.88,0.00039652,4]
[320315537,1711285863025,-704.78,0.00039652,4]
[320315538,1711285863034,-890.64,0.00039652,4]
[320315539,1711285863043,-861.2,0.00039652,4]
[320315540,1711285863052,-378.74,0.00039652,4]
[320315541,1711285863062,-5815.21784561,0.00039652,4]
[320315542,1711285863077,-453.1465095,0.00039652,4]
[320315543,1711285863089,-353.5200001,0.00039652,4]
[320315544,1711285863128,-208.654261,0.000354,2]
[320315545,1711285863137,-306.0,0.000354,2]
[320315546,1711285863146,-201.9092036,0.000354,2]
[320315547,1711285863155,-153.0,0.00037878,2]
[320315548,1711285863164,-153.0,0.00038685,2]
[320315549,1711285863174,-1227.31564479,0.00039652,4]
[320315550,1711285863183,-1762.95,0.00039652,4]
[320315551,1711285863193,-1752.71,0.00039652,4]
[320315552,1711285863203,-727.11,0.00039654,4]
[320315553,1711285863212,-500.0,0.00039654,4]
[320315554,1711285863221,-1075.86,0.00039654,4]
[320315555,1711285863232,-503.92,0.00039654,4]
[320315556,1711285863244,-741.76,0.00039654,4]
[320315557,1711285863253,-162.50184426,0.00039768,120]
[320315558,1711285863262,-500.0,0.00039785,4]
[320315559,1711285863272,-500.0,0.00039785,4]
[320315560,1711285863281,-500.0,0.00039785,4]
[320315561,1711285863290,-500.0,0.00039785,4]
[320315562,1711285863298,-500.0,0.00039785,4]
[320315563,1711285863308,-500.0,0.00039785,4]
[320315564,1711285863317,-500.0,0.00039785,4]
[320315565,1711285863326,-500.0,0.00039785,4]
[320315566,1711285863335,-500.0,0.00039785,4]
[320315567,1711285863344,-500.0,0.00039785,4]
[320315568,1711285863354,-500.0,0.00039785,4]
[320315569,1711285863364,-265.88553291,0.00039785,4]
[320315570,1711285863372,-500.0,0.00039785,4]
[320315571,1711285863381,-832.03,0.00039785,4]
[320315572,1711285863390,-500.0,0.00039785,4]
[320315573,1711285863400,-500.0,0.00039785,4]
[320315574,1711285863409,-703.5,0.00039785,4]
[320315575,1711285863419,-723.55,0.00039785,4]
[320315576,1711285863430,-500.0,0.00039785,4]
[320315577,1711285863444,-412.98244667,0.00039785,4]
[320315578,1711285863462,-371.72743753,0.00039785,4]
[320315579,1711285863478,-500.0,0.00039785,4]
[320315580,1711285863498,-500.0,0.00039785,4]
[320315581,1711285863515,-290.25241472,0.00039785,4]
[320315582,1711285863531,-500.0,0.00039785,4]
[320315583,1711285863548,-4837.65254531,0.000399,30]
[320315584,1711285863563,-823.15,0.00039925,4]
[320315585,1711285863584,-769.02,0.00039925,4]
[320315586,1711285863599,-6930.09,0.00039925,4]
[320315587,1711285863617,-1250.93,0.00039925,4]
[320315588,1711285863639,-505.83,0.00039925,4]
[320315589,1711285863653,-774.13840733,0.00039925,4]
[320315595,1711286835130,-1619.429426,0.00028633,2]
[320315596,1711286835151,-180.10493952,0.00028634,2]
[320315597,1711286835174,-181.0,0.00029498,30]
[320315598,1711286835196,-180.10493952,0.00029648,2]
[320315599,1711286835216,-154.98140354,0.00029895,2]
[320315600,1711286835236,-215.88707238,0.00029895,2]
[320315601,1711286835258,-329.70831677,0.00029895,2]
[320315602,1711286835277,-251.32790994,0.00029895,2]
[320315603,1711286835298,-205.23034575,0.00029895,2]
[320315604,1711286835317,-306.05404063,0.00029895,2]
[320315605,1711286835340,-207.14718856,0.00029895,2]
[320315606,1711286835359,-172.76108897,0.00029896,2]
[320315607,1711286835379,-290.82490655,0.00029896,2]
[320315608,1711286835412,-14432.64970552,0.00029897,2]
[320315609,1711286835434,-236.7497194,0.000299,7]
[320315610,1711286835456,-166.666666,0.0003177,2]
[320315611,1711286835476,-180.10493952,0.00031876,7]
[320315612,1711286835497,-232.945208,0.00032343,2]
[320315613,1711286835520,-242.198496,0.00032432,2]
[320315614,1711286835541,-154.0,0.00032637,2]
[320315615,1711286835562,-166.666666,0.00032637,2]
[320315616,1711286835582,-169.936049,0.00032668,2]
[320315617,1711286835603,-166.666666,0.00033503,2]
[320315618,1711286835623,-865.17829228,0.00034,4]
[320315619,1711286835644,-8205.29829514,0.00034,4]
[320315620,1711286835666,-166.666666,0.00034369,2]
[320315621,1711286835686,-180.10493952,0.00034756,7]
[320315622,1711286835709,-201.9092036,0.00034878,2]
[320315623,1711286835733,-201.9092036,0.00034878,2]
[320315624,1711286835755,-173.11394511,0.00034892,7]
[320315625,1711286835775,-283.26959533,0.00034894,2]
[320315626,1711286835795,-500.0,0.00034993,2]
[320315627,1711286835815,-500.0,0.00034993,2]
[320315628,1711286835839,-500.0,0.00034993,2]
[320315629,1711286835860,-500.0,0.00034993,2]
[320315630,1711286835881,-500.0,0.00034993,2]
[320315631,1711286835901,-500.0,0.00034993,2]
[320315632,1711286835922,-500.0,0.00034993,2]
[320315633,1711286835943,-500.0,0.00034993,2]
[320315634,1711286835964,-500.0,0.00034993,2]
[320315635,1711286835985,-500.0,0.00034993,2]
[320315636,1711286836008,-500.0,0.00034993,2]
[320315637,1711286836029,-500.0,0.00034993,2]
[320315638,1711286836051,-1000.0,0.00034993,120]
[320315639,1711286836070,-500.0,0.00034994,2]
[320315640,1711286836091,-502.1407914,0.00034994,2]
[320315641,1711286836111,-500.0,0.00034994,2]
[320315642,1711286836133,-500.0,0.00034994,2]
[320315643,1711286836154,-500.0,0.00034994,2]
[320315644,1711286836176,-371.44809317,0.00034994,2]
[320315645,1711286836198,-297.09939656,0.00034994,2]
[320315646,1711286836218,-500.0,0.00034994,2]
[320315647,1711286836238,-357.76326013,0.00034994,2]
[320315648,1711286836257,-500.0,0.00034994,2]
[320315649,1711286836278,-540.48,0.00034994,2]
[320315650,1711286836300,-500.0,0.00034994,2]
[320315651,1711286836323,-500.0,0.00034994,2]
[320315652,1711286836346,-500.0,0.00034994,2]
[320315653,1711286836367,-500.0,0.00034994,2]
[320315654,1711286836387,-500.0,0.00034994,2]
[320315655,1711286836407,-500.0,0.00034994,2]
[320315656,1711286836427,-500.0,0.00034994,2]
[320315657,1711286836448,-500.0,0.00034994,2]
[320315658,1711286836605,-500.0,0.00034994,2]
[320315659,1711286836627,-500.0,0.00034994,2]
[320315660,1711286836647,-500.0,0.00034994,2]
[320315661,1711286836668,-781.1,0.00034994,2]
[320315662,1711286836689,-500.0,0.00034994,2]
[320315663,1711286836710,-656.96,0.00034994,2]
[320315664,1711286836732,-674.24,0.00034994,2]
[320315665,1711286836753,-500.0,0.00034994,7]
[320315666,1711286836774,-500.0,0.00034994,7]
[320315667,1711286836794,-500.0,0.00034994,7]
[320315668,1711286836814,-500.0,0.00034994,7]
[320315669,1711286836835,-500.0,0.00034994,7]
[320315670,1711286836855,-500.0,0.00034994,7]
[320315671,1711286836876,-500.0,0.00034994,7]
[320315672,1711286836896,-500.0,0.00034994,7]
[320315673,1711286836916,-391.6989879,0.00034994,7]
[320315674,1711286836936,-500.0,0.00034994,7]
[320315675,1711286836957,-199.04101933,0.00034994,7]
[320315676,1711286836977,-500.0,0.00034994,7]
[320315677,1711286836999,-500.0,0.00034994,7]
[320315678,1711286837024,-184.78840737,0.00034994,7]
[320315679,1711286837045,-500.0,0.00034994,7]
[320315680,1711286837065,-500.0,0.00034996,2]
[320315681,1711286837086,-500.0,0.00034996,2]
[320315682,1711286837107,-500.0,0.00034996,2]
[320315683,1711286837128,-500.0,0.00034996,2]
[320315684,1711286837148,-500.0,0.00034996,2]
[320315685,1711286837168,-500.0,0.00034996,2]
[320315686,1711286837189,-516.81809797,0.00034996,2]
[320315687,1711286837210,-500.0,0.00034996,2]
[320315688,1711286837229,-500.0,0.00034996,2]
[320315689,1711286837248,-500.0,0.00034996,2]
[320315690,1711286837268,-500.0,0.00034996,2]
[320315691,1711286837288,-500.0,0.00034996,2]
[320315692,1711286837309,-500.0,0.00034996,2]
[320315693,1711286837329,-500.0,0.00034996,2]
[320315694,1711286837349,-551.95,0.00034996,2]
[320315695,1711286837369,-296.61172237,0.00034996,2]
[320315696,1711286837389,-500.0,0.00034996,2]
[320315697,1711286837408,-593.28409045,0.00035,2]
[320315698,1711286837428,-154.92253873,0.00035,4]
[320315699,1711286837448,-759.0,0.00035,15]
[320315700,1711286837468,-201.9092036,0.00035078,2]
[320315701,1711286837488,-166.666666,0.00035235,2]
[320315702,1711286837508,-283.2695953,0.00035237,2]
[320315703,1711286837529,-500.0,0.00035265,2]
[320315704,1711286837550,-1443.77,0.00035265,2]
[320315705,1711286837569,-500.0,0.00035265,2]
[320315706,1711286837590,-500.0,0.00035265,2]
[320315707,1711286837610,-500.0,0.00035266,2]
[320315708,1711286837630,-500.0,0.00035266,2]
[320315709,1711286837650,-500.0,0.00035266,2]
[320315710,1711286837671,-500.0,0.00035266,2]
[320315711,1711286837692,-420.87874557,0.00035266,2]
[320315712,1711286843098,-500.0,0.00035265,2]
[320315713,1711286843119,-79.12125443,0.00035266,2]
[320315714,1711286843139,-500.0,0.00035266,2]
[320315715,1711286843159,-500.0,0.00035266,2]
[320315716,1711286843179,-500.0,0.00035266,2]
[320315717,1711286843198,-500.0,0.00035266,2]
[320315718,1711286843217,-500.0,0.00035266,2]
[320315719,1711286843236,-500.0,0.00035266,2]
[320315720,1711286843255,-774.63,0.00035266,2]
[320315721,1711286843276,-500.0,0.00035266,2]
[320315722,1711286843298,-500.0,0.00035266,2]
[320315723,1711286843319,-1000.0,0.00035266,2]
[320315724,1711286843339,-500.0,0.00035266,2]
[320315725,1711286843359,-500.0,0.00035266,2]
[320315726,1711286843380,-500.0,0.00035266,2]
[320315727,1711286843401,-500.0,0.00035266,2]
[320315728,1711286843419,-500.0,0.00035266,2]
[320315729,1711286843438,-500.0,0.00035266,2]
[320315730,1711286843457,-500.0,0.00035266,2]
[320315731,1711286843476,-628.5,0.00035266,2]
[320315732,1711286843495,-500.0,0.00035266,2]
[320315733,1711286843514,-500.0,0.00035266,2]
[320315734,1711286843533,-500.0,0.00035266,2]
[320315735,1711286843551,-493.54224124,0.00035266,7]
[320315736,1711286843570,-538.67904535,0.00035266,7]
[320315737,1711286843590,-500.0,0.00035266,7]
[320315738,1711286843608,-264.95675327,0.00035266,7]
[320315739,1711286843626,-500.0,0.00035266,7]
[320315740,1711286843644,-450.25923337,0.00035266,7]
[320315741,1711286843662,-500.0,0.00035266,7]
[320315742,1711286843681,-500.0,0.00035266,7]
[320315743,1711286843700,-500.0,0.00035266,7]
[320315744,1711286843719,-500.0,0.00035266,7]
[320315745,1711286843738,-191.59138799,0.00035266,7]
[320315746,1711286843757,-500.0,0.00035267,2]
[320315747,1711286843776,-500.0,0.00035267,2]
[320315748,1711286843795,-500.0,0.00035267,2]
[320315749,1711286843815,-500.0,0.00035267,2]
[320315750,1711286843834,-500.0,0.00035267,2]
[320315751,1711286843853,-500.0,0.00035267,2]
[320315752,1711286843873,-500.0,0.00035267,2]
[320315753,1711286843893,-523.81,0.00035267,2]
[320315754,1711286843912,-500.78432997,0.00035267,2]
[320315755,1711286843931,-500.0,0.00035267,2]
[320315756,1711286843950,-500.0,0.00035267,2]
[320315757,1711286843969,-505.5,0.00035267,2]
[320315758,1711286843989,-500.0,0.00035267,2]
[320315759,1711286844011,-500.0,0.00035267,2]
[320315760,1711286844030,-500.0,0.00035267,2]
[320315761,1711286844050,-500.0,0.00035267,2]
[320315762,1711286844070,-297.11841611,0.00035267,2]
[320315763,1711286844091,-500.0,0.00035267,2]
[320315764,1711286844114,-502.3964733,0.00035267,2]
[320315765,1711286844134,-500.0,0.00035267,2]
[320315766,1711286844153,-500.0,0.00035267,2]
[320315767,1711286844174,-500.0,0.00035267,2]
[320315768,1711286844193,-500.0,0.00035267,2]
[320315769,1711286844212,-500.0,0.00035267,2]
[320315770,1711286844232,-1962.3,0.00035267,2]
[320315771,1711286844251,-500.0,0.00035267,2]
[320315772,1711286844270,-581.52,0.00035267,2]
[320315773,1711286844289,-500.0,0.00035267,2]
[320315774,1711286844309,-500.0,0.00035267,2]
[320315775,1711286844329,-500.0,0.00035267,2]
[320315776,1711286844349,-562.67,0.00035267,2]
[320315777,1711286844368,-500.0,0.00035267,2]
[320315778,1711286844500,-1000.0,0.00035267,120]
[320315779,1711286844519,-500.0,0.00035267,2]
[320315780,1711286844539,-500.0,0.00035267,2]
[320315781,1711286844557,-236.88442558,0.00035267,2]
[320315782,1711286844576,-500.0,0.00035267,2]
[320315783,1711286844595,-501.47094557,0.00035267,2]
[320315784,1711286844615,-500.0,0.00035267,2]
[320315785,1711286844633,-500.0,0.00035267,2]
[320315786,1711286844652,-500.0,0.00035267,2]
[320315787,1711286844671,-500.0,0.00035267,2]
[320315788,1711286844689,-500.0,0.00035267,2]
[320315789,1711286844708,-500.0,0.00035267,2]
[320315790,1711286844727,-256.68896774,0.00035267,2]
[320315791,1711286844746,-500.0,0.00035267,2]
[320315792,1711286844766,-501.69628076,0.00035267,2]
[320315793,1711286844784,-500.0,0.00035267,2]
[320315794,1711286844803,-500.0,0.00035267,2]
[320315795,1711286844822,-500.0,0.00035267,2]
[320315796,1711286844843,-500.0,0.00035267,2]
[320315797,1711286844861,-243.90631602,0.00035267,2]
[320315798,1711286844880,-500.0,0.00035267,2]
[320315799,1711286844900,-500.0,0.00035267,2]
[320315800,1711286844919,-500.0,0.00035267,2]
[320315801,1711286844937,-500.0,0.00035267,2]
[320315802,1711286844958,-500.0,0.00035267,2]
[320315803,1711286844977,-500.0,0.00035267,2]
[320315804,1711286845000,-500.0,0.00035267,2]
[320315805,1711286845020,-500.0,0.00035267,2]
[320315806,1711286845041,-500.0,0.00035267,2]
[320315807,1711286845061,-500.0,0.00035267,2]
[320315808,1711286845080,-500.0,0.00035268,2]
[320315809,1711286845101,-500.0,0.00035268,2]
[320315810,1711286845121,-500.0,0.00035268,2]
[320315811,1711286845142,-500.0,0.00035268,2]
[320315812,1711286845162,-500.0,0.00035268,2]
[320315813,1711286845182,-500.0,0.00035268,2]
[320315814,1711286845201,-500.0,0.00035268,2]
[320315815,1711286845221,-500.0,0.00035268,2]
[320315816,1711286845240,-500.0,0.00035268,2]
[320315817,1711286845260,-500.0,0.00035268,2]
[320315818,1711286845281,-504.98833072,0.00035268,2]
[320315819,1711286845302,-500.0,0.00035268,2]
[320315820,1711286845322,-173.58931251,0.00035268,2]
[320315821,1711286845342,-500.0,0.00035268,2]
[320315822,1711286845361,-500.0,0.00035268,2]
[320315823,1711286845384,-781.1,0.00035268,2]
[320315824,1711286845404,-500.0,0.00035268,2]
[320315825,1711286845424,-656.96,0.00035268,2]
[320315826,1711286845444,-674.24,0.00035268,2]
[320315827,1711286845465,-500.0,0.0003527,2]
[320315828,1711286845484,-275.72680892,0.0003527,2]
[320315829,1711286845505,-326.48455357,0.0003527,2]
[320315830,1711286845524,-500.0,0.0003527,2]
[320315831,1711286845544,-500.0,0.0003527,2]
[320315832,1711286845564,-500.0,0.0003527,2]
[320315833,1711286845584,-500.0,0.0003527,2]
[320315834,1711286845606,-197.43,0.0003527,2]
[320315835,1711286845625,-500.0,0.00035539,2]
[320315836,1711286845645,-1443.77,0.00035539,2]
[320315837,1711286845665,-500.0,0.00035539,2]
[320315838,1711286845685,-500.0,0.00035539,2]
[320315839,1711286845705,-500.0,0.00035539,2]
[320315840,1711286845725,-500.0,0.0003554,2]
[320315841,1711286845744,-500.0,0.0003554,2]
[320315842,1711286845764,-612.07,0.0003554,2]
[320315843,1711286845784,-500.0,0.0003554,2]
[320315844,1711286845803,-500.0,0.0003554,2]
[320315845,1711286845823,-500.0,0.0003554,2]
[320315846,1711286845843,-774.63,0.0003554,2]
[320315847,1711286845862,-500.0,0.0003554,2]
[320315848,1711286845882,-1000.0,0.0003554,2]
[320315849,1711286845902,-500.0,0.0003554,2]
[320315850,1711286845922,-500.0,0.0003554,2]
[320315851,1711286845944,-500.0,0.0003554,2]
[320315852,1711286845963,-500.0,0.00035541,2]
[320315853,1711286845984,-500.0,0.00035541,2]
[320315854,1711286846008,-500.0,0.00035541,2]
[320315855,1711286846028,-500.0,0.00035541,2]
[320315856,1711286846049,-1962.3,0.00035541,2]
[320315857,1711286846069,-500.0,0.00035541,2]
[320315858,1711286846092,-581.52,0.00035541,2]
[320315859,1711286846112,-562.67,0.00035541,2]
[320315860,1711286846133,-500.0,0.00035541,2]
[320315861,1711286846155,-1000.0,0.00035541,120]
[320315862,1711286846175,-500.0,0.00035541,2]
[320315863,1711286846196,-500.0,0.00035541,2]
[320315864,1711286846216,-500.0,0.00035541,2]
[320315865,1711286846237,-500.0,0.00035541,2]
[320315866,1711286846257,-500.0,0.00035541,2]
[320315867,1711286846278,-500.0,0.00035541,2]
[320315868,1711286846298,-500.0,0.00035541,2]
[320315869,1711286846317,-500.0,0.00035541,2]
[320315870,1711286846337,-500.0,0.00035541,2]
[320315871,1711286846359,-500.0,0.00035541,2]
[320315872,1711286846382,-500.0,0.00035541,2]
[320315873,1711286846402,-500.0,0.00035541,2]
[320315874,1711286846421,-500.0,0.00035541,2]
[320315875,1711286846440,-500.0,0.00035541,2]
[320315876,1711286846459,-500.0,0.00035541,2]
[320315877,1711286846478,-500.0,0.00035541,2]
[320315878,1711286846497,-500.0,0.00035541,2]
[320315879,1711286846515,-500.0,0.00035541,2]
[320315880,1711286846534,-500.0,0.00035541,2]
[320315881,1711286846553,-500.0,0.00035541,2]
[320315882,1711286846573,-507.94586553,0.00035541,2]
[320315883,1711286846592,-500.0,0.00035541,2]
[320315884,1711286846611,-500.0,0.00035542,2]
[320315885,1711286846629,-539.19460141,0.00035542,2]
[320315886,1711286846648,-500.0,0.00035542,2]
[320315887,1711286846668,-500.0,0.00035542,2]
[320315888,1711286846687,-500.0,0.00035542,2]
[320315889,1711286846706,-500.0,0.00035542,2]
[320315890,1711286846726,-500.0,0.00035542,2]
[320315891,1711286846746,-500.0,0.00035542,2]
[320315892,1711286846765,-500.0,0.00035542,2]
[320315893,1711286846785,-781.1,0.00035542,2]
[320315894,1711286846805,-500.0,0.00035542,2]
[320315895,1711286846825,-656.96,0.00035542,2]
[320315896,1711286846846,-674.24,0.00035542,2]
[320315897,1711286846865,-500.0,0.00035544,2]
[320315898,1711286846885,-265.25,0.00035544,2]
[320315899,1711286846905,-283.2695953,0.00035579,2]
[320315900,1711286846925,-197.561171,0.00035616,120]
[320315901,1711286846945,-500.0,0.00035813,4]
[320315902,1711286846965,-1443.77,0.00035813,4]
[320315903,1711286846984,-500.0,0.00035813,4]
[320315904,1711286847005,-500.0,0.00035813,4]
[320315905,1711286847026,-500.0,0.00035813,4]
[320315906,1711286847046,-500.0,0.00035814,4]
[320315907,1711286847066,-500.0,0.00035814,4]
[320315908,1711286847086,-500.0,0.00035814,4]
[320315909,1711286847107,-500.0,0.00035814,4]
[320315910,1711286847228,-774.63,0.00035814,4]
[320315911,1711286847250,-500.0,0.00035814,4]
[320315912,1711286847272,-1000.0,0.00035814,2]
[320315913,1711286847293,-98.49368034,0.00035814,4]
[320315914,1711286848104,-261.10942718,0.00035444,2]
[320315915,1711286851152,-500.0,0.00035266,2]
[320315916,1711286851173,-43663.21767072,0.00035444,2]
[320315917,1711286851192,-2175.81688715,0.00035539,2]
[320315918,1711286851212,-500.0,0.0003554,2]
[320315919,1711286851231,-401.50631966,0.00035814,4]
[320315920,1711286851251,-500.0,0.00035814,4]
[320315921,1711286851273,-500.0,0.00035814,4]
[320315922,1711286851292,-500.0,0.00035814,4]
[320315923,1711286851313,-500.0,0.00035815,4]
[320315924,1711286851332,-500.0,0.00035815,4]
[320315925,1711286851354,-529.64,0.00035815,4]
[320315926,1711286851374,-500.0,0.00035815,4]
[320315927,1711286851393,-500.0,0.00035815,4]
[320315928,1711286851414,-581.52,0.00035815,4]
[320315929,1711286851434,-562.67,0.00035815,4]
[320315930,1711286851454,-500.0,0.00035815,4]
[320315931,1711286851473,-1000.0,0.00035815,120]
[320315932,1711286851493,-500.0,0.00035815,4]
[320315933,1711286851511,-500.0,0.00035815,4]
[320315934,1711286851532,-500.0,0.00035815,4]
[320315935,1711286851552,-500.0,0.00035815,4]
[320315936,1711286851571,-500.0,0.00035815,4]
[320315937,1711286851591,-500.0,0.00035815,4]
[320315938,1711286851614,-500.0,0.00035815,4]
[320315939,1711286851633,-500.0,0.00035815,4]
[320315940,1711286851653,-500.0,0.00035815,4]
[320315941,1711286851672,-500.0,0.00035815,4]
[320315942,1711286851692,-500.0,0.00035815,4]
[320315943,1711286851711,-500.0,0.00035815,4]
[320315944,1711286851731,-500.0,0.00035815,4]
[320315945,1711286851750,-500.0,0.00035815,4]
[320315946,1711286851769,-500.0,0.00035815,4]
[320315947,1711286851789,-500.0,0.00035815,4]
[320315948,1711286851809,-500.0,0.00035815,4]
[320315949,1711286851828,-500.0,0.00035815,4]
[320315950,1711286851848,-261.10942718,0.00035816,4]
[320315951,1711286851867,-500.0,0.00035816,4]
[320315952,1711286851886,-500.0,0.00035816,4]
[320315953,1711286851906,-500.0,0.00035816,4]
[320315954,1711286851926,-500.0,0.00035816,4]
[320315955,1711286851946,-500.0,0.00035816,4]
[320315956,1711286851966,-781.1,0.00035816,4]
[320315957,1711286851987,-500.0,0.00035816,4]
[320315958,1711286852010,-656.96,0.00035816,4]
[320315959,1711286852031,-674.24,0.00035816,4]
[320315960,1711286852053,-500.0,0.00035818,4]
[320315961,1711286852074,-201.9092036,0.000359,2]
[320315962,1711286852098,-201.5448512,0.000359,2]
[320315963,1711286852118,-283.2695953,0.00035922,2]
[320315964,1711286852138,-2000.0,0.00035992,2]
[320315965,1711286852160,-500.0,0.00036087,4]
[320315966,1711286852183,-1443.77,0.00036087,4]
[320315967,1711286852204,-500.0,0.00036087,4]
[320315968,1711286852224,-500.0,0.00036087,4]
[320315969,1711286852244,-500.0,0.00036087,4]
[320315970,1711286852264,-500.0,0.00036088,4]
[320315971,1711286852283,-500.0,0.00036088,4]
[320315972,1711286852303,-500.0,0.00036088,4]
[320315973,1711286852323,-500.0,0.00036088,4]
[320315974,1711286852343,-774.63,0.00036088,4]
[320315975,1711286852366,-500.0,0.00036088,4]
[320315976,1711286852386,-1000.0,0.00036088,2]
[320315977,1711286852407,-500.0,0.00036088,4]
[320315978,1711286852428,-500.0,0.00036088,4]
[320315979,1711286852448,-500.0,0.00036088,4]
[320315980,1711286852467,-500.0,0.00036088,4]
[320315981,1711286852488,-500.0,0.00036089,4]
[320315982,1711286852508,-500.0,0.00036089,4]
[320315983,1711286852527,-558.06,0.00036089,4]
[320315984,1711286852547,-500.0,0.00036089,4]
[320315985,1711286852568,-581.52,0.00036089,4]
[320315986,1711286852587,-562.67,0.00036089,4]
[320315987,1711286852609,-500.0,0.00036089,4]
[320315988,1711286852630,-1000.0,0.00036089,120]
[320315989,1711286852649,-3086.3,0.00036089,4]
[320315990,1711286852670,-500.0,0.00036089,4]
[320315991,1711286852690,-500.0,0.00036089,4]
[320315992,1711286852711,-500.0,0.00036089,4]
[320315993,1711286852731,-500.0,0.00036089,4]
[320315994,1711286852752,-500.0,0.00036089,4]
[320315995,1711286852771,-500.0,0.00036089,4]
[320315996,1711286852792,-500.0,0.00036089,4]
[320315997,1711286852812,-500.0,0.00036089,4]
[320315998,1711286852832,-500.0,0.00036089,4]
[320315999,1711286852853,-501.64404825,0.00036089,4]
[320316000,1711286852873,-557.4,0.0003609,4]
[320316001,1711286852893,-500.0,0.0003609,4]
[320316002,1711286852913,-500.0,0.0003609,4]
[320316003,1711286852933,-500.0,0.0003609,4]
[320316004,1711286852953,-500.0,0.0003609,4]
[320316005,1711286852974,-781.1,0.0003609,4]
[320316006,1711286852995,-500.0,0.0003609,4]
[320316007,1711286853018,-656.96,0.0003609,4]
[320316008,1711286853037,-674.24,0.0003609,4]
[320316009,1711286853058,-500.0,0.00036092,4]
[320316010,1711286853078,-166.666666,0.00036101,2]
[320316011,1711286853102,-283.2695953,0.00036264,2]
[320316012,1711286853122,-500.0,0.00036361,4]
[320316013,1711286853143,-1443.77,0.00036361,4]
[320316014,1711286853163,-500.0,0.00036361,4]
[320316015,1711286853184,-529.15,0.00036361,4]
[320316016,1711286853204,-500.0,0.00036361,4]
[320316017,1711286853325,-500.0,0.00036362,4]
[320316018,1711286853348,-500.0,0.00036362,4]
[320316019,1711286853368,-500.0,0.00036362,4]
[320316020,1711286853387,-500.0,0.00036362,4]
[320316021,1711286853408,-774.63,0.00036362,4]
[320316022,1711286853429,-500.0,0.00036362,4]
[320316023,1711286853448,-1000.0,0.00036362,2]
[320316024,1711286853468,-253.7,0.00036362,4]
[320316025,1711286853490,-500.0,0.00036362,4]
[320316026,1711286853511,-500.0,0.00036362,4]
[320316027,1711286853533,-500.0,0.00036362,4]
[320316028,1711286853554,-500.0,0.00036363,4]
[320316029,1711286853575,-500.0,0.00036363,4]
[320316030,1711286853598,-500.0,0.00036363,4]
[320316031,1711286853619,-581.52,0.00036363,4]
[320316032,1711286853640,-562.67,0.00036363,4]
[320316033,1711286853660,-500.0,0.00036363,4]
[320316034,1711286853684,-1000.0,0.00036363,120]
[320316035,1711286853708,-3086.3,0.00036363,4]
[320316036,1711286853729,-500.0,0.00036363,4]
[320316037,1711286853751,-209.72640167,0.00036363,4]
[320316038,1711286853773,-500.0,0.00036363,4]